bitfinex/quotes_ETHUSD_20251215
["timestamp","ask_amount","ask_price","bid_price","bid_amount"]
[1765788917288,0.002,3142.8,3142.6,0.98597929]
[1765788917492,0.002,3142.8,3142.7,6.31577781]
[1765788917787,0.002,3142.8,3142.7,6.39885804]
[1765788918085,0.002,3142.8,3142.7,6.52623176]
[1765788918460,0.002,3142.8,3142.7,2.14851512]
[1765788918686,0.002,3142.8,3142.7,2.18033489]
[1765788919389,0.002,3142.8,3142.7,5.94278746]
[1765788920386,0.002,3142.8,3142.7,6.34829146]
[1765788920591,0.002,3142.8,3142.7,6.31647169]
[1765788923389,0.0012,3142.8,3142.7,6.31647169]
[1765788926091,0.0012,3142.8,3142.7,6.20157169]
[1765788926293,0.0012,3142.8,3142.7,11.08128833]
[1765788926495,0.0012,3142.8,3142.7,15.57390497]
[1765788930799,0.0012,3142.8,3142.7,11.19618833]
[1765788933998,0.0012,3142.8,3142.7,15.57390497]
[1765788935001,0.0012,3142.8,3142.7,11.19618833]
[1765788935196,0.0012,3142.8,3142.7,10.61571304]
[1765788935398,0.0012,3142.8,3142.7,9.88391304]
[1765788935582,0.4589,3142.8,3142.7,7.68706764]
[1765788935773,0.922,3142.8,3142.7,7.68706764]
[1765788936105,0.4589,3142.8,3142.7,7.68706764]
[1765788936305,0.922,3142.8,3142.7,7.68706764]
[1765788936494,0.922,3142.8,3142.7,3.309351]
[1765788936695,0.922,3142.8,3142.7,7.55969392]
[1765788937286,0.922,3142.8,3142.7,3.18197728]
[1765788938240,0.922,3142.8,3142.6,3.18207853]
[1765788938405,0.4631,3142.7,3142.6,3.18207853]
[1765788938614,0.9208,3142.7,3142.6,3.18207853]
[1765788941314,0.4577,3142.7,3142.6,3.18207853]
[1765788942025,0.0012,3142.8,3142.6,3.74604527]
[1765788942187,0.0012,3142.8,3142.7,7.67459392]
[1765788942520,0.0012,3142.8,3142.7,7.78949392]
[1765788943086,0.0012,3142.8,3142.7,7.67459392]
[1765788944501,0.0012,3142.8,3142.7,7.78949392]
[1765788944702,0.0012,3142.8,3142.7,9.39688393]
[1765788945781,0.0012,3142.8,3142.7,9.28198393]
[1765788945981,0.0012,3142.8,3142.7,9.39688393]
[1765788946222,0.0012,3142.8,3142.7,5.01916729]
[1765788946403,0.0012,3142.8,3142.7,9.39688393]
[1765788946781,0.0012,3142.8,3142.7,9.68748793]
[1765788946782,0.0004,3142.8,3142.7,9.68748793]
[1765788947198,0.0004,3142.8,3142.7,10.18948793]
[1765788949330,0.4581,3142.8,3142.7,9.66908393]
[1765788949533,0.9212,3142.8,3142.7,7.55969392]
[1765788949911,0.9212,3142.8,3142.7,8.02279392]
[1765788950106,0.9212,3142.8,3142.7,7.55969392]
[1765788951212,0.9212,3142.8,3142.6,3.18307369]
[1765788951498,0.93671622,3142.7,3142.6,0.001]
[1765788952320,1.34860893,3142.7,3142.6,0.001]
[1765788953909,0.93671622,3142.7,3142.6,0.001]
[1765788956739,0.0004,3142.8,3142.6,0.1159]
[1765788956909,0.4577,3142.7,3142.6,0.001]
[1765788957112,0.9243,3142.7,3142.6,0.001]
[1765788957908,0.4577,3142.7,3142.6,0.001]
[1765788958307,0.9243,3142.7,3142.6,0.001]
[1765788966217,0.0004,3142.8,3142.6,0.1159]
[1765788966547,0.502,3142.7,3142.6,0.001]
[1765788966851,1.4363,3142.7,3142.6,0.001]
[1765788969925,1.4355,3142.7,3142.6,0.001]
[1765788972765,0.4677,3142.7,3142.6,0.001]
[1765788972969,0.502,3142.7,3142.6,0.1159]
[1765788973859,0.9697,3142.7,3142.6,0.001]
[1765788974649,1.4363,3142.7,3142.6,0.001]
[1765788982750,0.9697,3142.7,3142.6,0.001]
[1765788986175,0.502,3142.7,3142.6,3.29797853]
[1765788986382,0.502,3142.7,3142.6,3.94620441]
[1765788987077,0.0004,3142.8,3142.6,3.94620441]
[1765788987283,0.0004,3142.8,3142.7,0.2298]
[1765788987482,0.5024,3142.8,3142.7,0.1149]
[1765788987665,0.0004,3142.8,3142.7,5.04379456]
[1765788987864,0.0004,3142.8,3142.7,6.56782764]
[1765788988067,0.0004,3142.8,3142.7,6.53600787]
[1765788988262,0.0004,3142.8,3142.7,9.71798515]
[1765788989885,0.0004,3142.8,3142.7,10.29846044]
[1765788990587,0.0004,3142.8,3142.7,10.42583781]
[1765788993286,0.002,3143.1,3142.9,0.1149]
[1765788993491,0.002,3143.1,3143.0,5.07204608]
[1765788993658,0.002,3143.1,3143.0,5.64878822]
[1765788994087,0.002,3143.1,3143.0,5.76368822]
[1765788995490,0.002,3143.1,3143.0,8.94536178]
[1765788996699,0.002,3143.1,3143.0,8.83046178]
[1765788998814,0.9174,3143.1,3143.0,4.33889099]
[1765788998967,0.4673,3143.1,3143.0,4.33889099]
[1765789005215,0.4673,3143.1,3143.0,4.33989099]
[1765789005406,0.9174,3143.1,3143.0,4.33989099]
[1765789006806,0.4673,3143.1,3143.0,3.7594157]
[1765789007010,0.9174,3143.1,3143.0,3.7594157]
[1765789007177,0.9174,3143.1,3143.0,3.18267356]
[1765789007377,0.9174,3143.1,3143.0,0.001]
[1765789010914,1.4194,3143.1,3143.0,0.001]
[1765789016621,1.4186,3143.1,3143.0,0.001]
[1765789021027,0.9166,3143.1,3143.0,0.001]
[1765789021244,0.0012,3143.1,3143.0,0.001]
[1765789021398,0.0012,3143.1,3143.0,0.66838578]
[1765789022734,0.0012,3143.1,3143.0,4.25556334]
[1765789023232,0.0012,3143.1,3143.0,4.75956334]
[1765789027241,0.0012,3143.1,3143.0,4.64466334]
[1765789027541,0.0012,3143.1,3143.0,4.75956334]
[1765789028738,0.0012,3143.1,3143.0,9.01952115]
[1765789028931,0.0012,3143.1,3143.0,9.13442115]
[1765789031907,0.0012,3143.1,3143.0,8.90462115]
[1765789032120,0.0012,3143.1,3143.0,9.01952115]
[1765789032328,0.0012,3143.1,3143.0,9.13442115]
[1765789033362,0.0012,3143.1,3143.0,9.01952115]
[1765789034255,0.0012,3143.1,3143.0,9.48509644]
[1765789035029,0.0012,3143.1,3143.0,5.11023863]
[1765789035229,0.0012,3143.1,3143.0,8.98109644]
[1765789035451,0.4902,3143.1,3143.0,8.98109644]
[1765789037459,0.0012,3143.1,3143.0,8.98109644]
[1765789038363,0.0012,3143.1,3143.0,9.09599644]
[1765789039870,0.0004,3143.1,3143.0,9.09599644]
[1765789043749,0.0004,3143.1,3143.0,8.98109644]
[1765789044049,0.0004,3143.1,3143.0,9.09599644]
[1765789044564,0.0004,3143.1,3143.0,4.31563463]
[1765789044861,0.4894,3143.1,3143.0,8.57559244]
[1765789045234,0.0004,3143.1,3143.0,8.57559244]
[1765789045569,0.0004,3143.1,3143.0,9.57559244]
[1765789048781,0.486,3143.1,3143.0,9.57559244]
[1765789049187,0.486,3143.1,3143.0,4.18267356]
[1765789049356,0.9596,3143.1,3143.0,4.18267356]
[1765789049561,0.9596,3143.1,3143.0,1.001]
[1765789051193,0.9596,3143.1,3143.0,0.001]
[1765789052493,4.14117233,3143.1,3143.0,0.001]
[1765789052679,4.92521894,3143.1,3143.0,0.001]
[1765789063067,4.92441894,3143.1,3143.0,0.001]
[1765789068894,4.92641894,3143.1,3143.0,0.001]
[1765789070869,5.05384257,3143.1,3143.0,0.001]
[1765789073701,5.63431786,3143.1,3143.0,0.001]
[1765789073878,28.28078374,3143.1,3143.0,0.001]
[1765789074077,24.83991867,3143.1,3143.0,0.001]
[1765789075602,24.8437373,3143.1,3143.0,0.001]
[1765789076301,29.4391613,3143.1,3143.0,0.001]
[1765789077204,40.0129943,3143.1,3143.0,0.001]
[1765789079208,36.5664403,3143.1,3143.0,0.001]
[1765789079592,35.1980063,3143.1,3143.0,0.001]
[1765789080125,10.87859336,3143.1,3143.0,0.001]
[1765789080292,40.4184983,3143.1,3143.0,0.001]
[1765789084817,40.87859336,3143.1,3143.0,0.001]
[1765789086246,40.4184983,3143.1,3143.0,0.001]
[1765789086408,40.4176983,3143.1,3143.0,0.001]
[1765789087445,10.4176983,3143.1,3143.0,0.001]
[1765789087743,40.4176983,3143.1,3143.0,0.001]
[1765789088216,36.03902186,3143.1,3143.0,0.001]
[1765789088442,20.38785786,3143.1,3143.0,0.001]
[1765789088623,20.79336186,3143.1,3143.0,0.001]
[1765789089140,17.69936086,3143.1,3143.0,0.001]
[1765789089341,12.89072786,3143.1,3143.0,0.001]
[1765789089538,19.25638086,3143.1,3143.0,0.001]
[1765789089738,19.75838086,3143.1,3143.0,0.001]
[1765789090513,36.54102186,3143.1,3143.0,0.001]
[1765789092836,37.00111692,3143.1,3143.0,0.001]
[1765789093129,37.46038635,3143.1,3143.0,0.001]
[1765789093333,37.00111692,3143.1,3143.0,0.001]
[1765789095133,36.54102186,3143.1,3143.0,0.001]
[1765789095529,6.54102186,3143.1,3143.0,0.001]
[1765789095724,36.54102186,3143.1,3143.0,0.001]
[1765789096949,37.00111692,3143.1,3143.0,0.001]
[1765789097344,37.62663571,3143.1,3143.0,0.001]
[1765789098646,37.16736628,3143.1,3143.0,0.001]
[1765789098943,40.51736628,3143.1,3143.0,0.001]
[1765789099127,40.05727122,3143.1,3143.0,0.001]
[1765789100143,36.70727122,3143.1,3143.0,0.001]
[1765789100346,36.20527122,3143.1,3143.0,0.001]
[1765789100534,24.72660293,3143.1,3143.0,0.001]
[1765789100739,7.11567596,3143.1,3143.0,0.1171]
[1765789100942,7.69615125,3143.1,3143.0,0.1171]
[1765789101733,8.35242696,3143.1,3143.0,0.1171]
[1765789101933,8.93290225,3143.1,3143.0,0.1171]
[1765789102136,11.14371884,3143.1,3143.0,0.1171]
[1765789102841,17.44465184,3143.1,3143.0,0.1171]
[1765789103232,9.82949284,3143.1,3143.0,0.1171]
[1765789103628,10.32229284,3143.1,3143.0,0.001]
[1765789103824,13.96096284,3143.1,3143.0,0.001]
[1765789104738,7.56358784,3143.1,3143.0,0.001]
[1765789104936,23.77108684,3143.1,3143.0,0.001]
[1765789105557,28.14976328,3143.1,3143.0,0.001]
[1765789105921,37.26916128,3143.1,3143.0,0.001]
[1765789106657,43.59916128,3143.1,3143.0,0.001]
[1765789107957,46.33791728,3143.1,3143.0,0.001]
[1765789108157,45.09341728,3143.1,3143.0,0.001]
[1765789108556,45.49892128,3143.1,3143.0,0.001]
[1765789109057,45.95891128,3143.1,3143.0,0.001]
[1765789109446,42.86921428,3143.1,3143.0,0.001]
[1765789109646,42.86841428,3143.1,3143.0,0.001]
[1765789110053,18.67696828,3143.1,3143.0,0.001]
[1765789110259,42.96841428,3143.1,3143.0,0.001]
[1765789110761,41.73091428,3143.1,3143.0,0.001]
[1765789111360,24.28902484,3143.1,3143.0,0.1171]
[1765789111535,16.20524584,3143.1,3143.0,0.1171]
[1765789112271,12.93348784,3143.1,3143.0,0.1171]
[1765789112562,24.34490284,3143.1,3143.0,0.1171]
[1765789112749,18.20089684,3143.1,3143.0,0.1171]
[1765789113459,24.74990684,3143.1,3143.0,0.1171]
[1765789113631,16.19296784,3143.1,3143.0,0.1171]
[1765789114562,19.77629784,3143.1,3143.0,0.1171]
[1765789115537,18.52872284,3143.1,3143.0,0.1171]
[1765789115739,17.83043184,3143.1,3143.0,0.1171]
[1765789116669,17.57450084,3143.1,3143.0,0.1171]
[1765789117265,17.30896184,3143.1,3143.0,0.1171]
[1765789117633,25.38693084,3143.1,3143.0,0.1171]
[1765789117971,23.61554584,3143.1,3143.0,0.1171]
[1765789118573,22.37894684,3143.1,3143.0,0.1171]
[1765789118744,12.93348784,3143.1,3143.0,0.1171]
[1765789118950,18.16008884,3143.1,3143.0,0.1171]
[1765789119254,12.93348784,3143.1,3143.0,0.1171]
[1765789119454,15.32649884,3143.1,3143.0,0.1171]
[1765789119865,15.29472884,3143.1,3143.0,0.1171]
[1765789129067,13.08391225,3143.1,3143.0,0.1171]
[1765789129261,13.08391225,3143.1,3143.0,0.2332]
[1765789133092,13.08311225,3143.1,3143.0,0.2332]
[1765789134187,12.58111225,3143.1,3143.0,0.1171]
[1765789134372,13.08311225,3143.1,3143.0,0.1171]
[1765789136693,13.08311225,3143.1,3143.0,0.2332]
[1765789137062,10.72187125,3143.1,3143.0,0.2332]
[1765789138500,13.340975,3143.1,3143.0,0.001]
[1765789138792,19.185548,3143.1,3143.0,0.001]
[1765789138991,18.733148,3143.1,3143.0,0.001]
[1765789139188,18.261848,3143.1,3143.0,0.1171]
[1765789139575,27.829241,3143.1,3143.0,0.1171]
[1765789139901,19.180198,3143.1,3143.0,0.1171]
[1765789140876,40.438954,3143.1,3143.0,0.1171]
[1765789141392,41.362654,3143.1,3143.0,0.001]
[1765789142003,43.793375,3143.1,3143.0,0.001]
[1765789144015,13.793375,3143.1,3143.0,0.001]
[1765789144185,43.793375,3143.1,3143.0,0.001]
[1765789144384,42.091375,3143.1,3143.0,0.001]
[1765789145113,42.321401,3143.1,3143.0,0.001]
[1765789145624,42.091375,3143.1,3143.0,0.001]
[1765789146122,42.249616,3143.1,3143.0,0.001]
[1765789146524,42.01959,3143.1,3143.0,0.001]
[1765789147198,42.253048,3143.1,3143.0,0.001]
[1765789150507,13.793375,3143.1,3143.0,0.001]
[1765789150713,43.793375,3143.1,3143.0,0.001]
[1765789152317,41.291694,3143.1,3143.0,0.001]
[1765789152520,36.151963,3143.1,3143.0,0.001]
[1765789153104,34.924963,3143.1,3143.0,0.001]
[1765789153529,34.472563,3143.1,3143.0,0.001]
[1765789153715,35.973041,3143.1,3143.0,0.001]
[1765789153916,35.654563,3143.1,3143.0,0.001]
[1765789155025,36.110763,3143.1,3143.0,0.001]
[1765789155728,13.797175,3143.1,3143.0,0.001]
[1765789156051,43.797175,3143.1,3143.0,0.001]
[1765789156425,43.796375,3143.1,3143.0,0.001]
[1765789157020,42.182835,3143.1,3143.0,0.001]
[1765789157217,41.864357,3143.1,3143.0,0.001]
[1765789157526,46.24175955,3143.1,3143.0,0.001]
[1765789157826,48.17377755,3143.1,3143.0,0.001]
[1765789159009,44.26491955,3143.1,3143.0,0.001]
[1765789161438,45.34644155,3143.1,3143.0,0.001]
[1765789162236,44.36044155,3143.1,3143.0,0.001]
[1765789162440,43.90424155,3143.1,3143.0,0.001]
[1765789162932,44.17928555,3143.1,3143.0,0.001]
[1765789163229,43.78922155,3143.1,3143.0,0.001]
[1765789163836,32.59051755,3143.1,3143.0,0.1171]
[1765789164036,21.332326,3143.1,3143.0,0.1171]
[1765789164333,15.240532,3143.1,3143.0,0.2332]
[1765789164707,13.09272825,3143.1,3143.0,0.2332]
[1765789166536,13.09272825,3143.1,3143.0,0.1171]
[1765789170538,13.55732825,3143.1,3143.0,0.001]
[1765789174819,41.66687125,3143.1,3143.0,0.001]
[1765789175028,34.51237525,3143.1,3143.0,0.001]
[1765789175228,28.00705138,3143.1,3143.0,0.001]
[1765789175421,24.08612893,3143.1,3143.0,0.001]
[1765789175622,24.32783493,3143.1,3143.0,0.001]
[1765789176652,18.77267693,3143.1,3143.0,0.001]
[1765789176953,33.25379493,3143.1,3143.0,0.001]
[1765789177752,48.77267693,3143.1,3143.0,0.001]
[1765789179554,48.77187693,3143.1,3143.0,0.001]
[1765789180236,49.25307693,3143.1,3143.0,0.001]
[1765789183953,49.65858093,3143.1,3143.0,0.001]
[1765789188350,19.65858093,3143.1,3143.0,0.001]
[1765789188554,49.65858093,3143.1,3143.0,0.001]
[1765789189448,48.30727693,3143.1,3143.0,0.1171]
[1765789191034,41.97727693,3143.1,3143.0,0.1171]
[1765789192667,11.97727693,3143.1,3143.0,0.1171]
[1765789192869,38.7676738,3143.1,3143.0,0.1171]
[1765789195066,39.7207738,3143.1,3143.0,0.001]
[1765789196976,40.1262778,3143.1,3143.0,0.001]
[1765789197492,40.12771383,3143.1,3143.0,0.001]
[1765789199991,10.12771383,3143.1,3143.0,0.001]
[1765789200191,37.399523,3143.1,3143.0,0.001]
[1765789200393,36.040919,3143.1,3143.0,0.1171]
[1765789200577,36.040919,3143.1,3143.0,0.001]
[1765789200764,36.040919,3143.1,3143.0,0.1171]
[1765789201108,35.538919,3143.1,3143.0,0.1171]
[1765789201286,35.538919,3143.1,3143.0,0.2332]
[1765789201287,33.30779596,3143.1,3143.0,0.2332]
[1765789201458,33.80979596,3143.1,3143.0,0.2332]
[1765789201666,32.85373125,3143.1,3143.0,0.2332]
[1765789202898,32.85293125,3143.1,3143.0,0.2332]
[1765789208695,32.85293125,3143.1,3143.0,3.41487356]
[1765789208696,0.002,3143.1,3143.0,3.41487356]
[1765789208877,0.504,3143.1,3143.0,4.07454803]
[1765789209285,0.002,3143.1,3143.0,4.07454803]
[1765789209500,0.002,3143.1,3143.0,8.45272254]
[1765789222408,0.002,3143.1,3143.0,3.95844803]
[1765789222601,0.002,3143.1,3143.0,4.07454803]
[1765789224315,0.002,3143.1,3143.0,0.77677447]
[1765789224490,0.002,3143.1,3143.0,0.1171]
[1765789226205,0.002,3143.1,3143.0,0.2332]
[1765789231998,0.002,3143.1,3143.0,3.82037756]
[1765789232321,0.002,3143.1,3143.0,4.32537756]
[1765789233897,0.002,3143.1,3143.0,5.32537756]
[1765789236621,0.002,3143.1,3143.0,7.36990581]
[1765789246209,0.002,3143.1,3143.0,11.74808032]
[1765789246538,0.002,3143.1,3143.0,11.63198032]
[1765789246740,0.002,3143.1,3143.0,11.74808032]
[1765789250323,0.002,3143.1,3143.0,7.36990581]
[1765789250645,0.002,3143.1,3143.0,11.63198032]
[1765789251148,0.002,3143.1,3143.0,11.74808032]
[1765789252023,0.002,3143.1,3143.0,11.63198032]
[1765789252751,0.002,3143.1,3143.0,11.74808032]
[1765789254564,0.002,3143.1,3143.0,11.63198032]
[1765789255664,0.002,3143.1,3143.0,7.25380581]
[1765789255864,0.4846,3143.1,3143.0,4.18267356]
[1765789256177,1.466,3143.1,3143.0,0.001]
[1765789258575,4.64757233,3143.1,3143.0,0.001]
[1765789260266,4.64677233,3143.1,3143.0,0.001]
[1765789261216,4.64597233,3143.1,3143.0,0.001]
[1765789261578,5.4430404,3143.1,3143.0,0.001]
[1765789261776,6.02351569,3143.1,3143.0,0.001]
[1765789264466,24.48968369,3143.1,3143.0,0.001]
[1765789264671,23.56488569,3143.1,3143.0,0.001]
[1765789264849,21.74960769,3143.1,3143.0,0.001]
[1765789265053,34.48252669,3143.1,3143.0,0.001]
[1765789265253,23.49087569,3143.1,3143.0,0.001]
[1765789266084,33.98065169,3143.1,3143.0,0.001]
[1765789266957,14.01625346,3143.1,3143.0,0.001]
[1765789267163,8.62976746,3143.1,3143.0,0.001]
[1765789268083,8.62896746,3143.1,3143.0,0.001]
[1765789268288,18.99448746,3143.1,3143.0,0.001]
[1765789269173,6.15016246,3143.1,3143.0,0.001]
[1765789269377,24.18074746,3143.1,3143.0,0.001]
[1765789269885,24.18274746,3143.1,3143.0,0.001]
[1765789270058,30.51274746,3143.1,3143.0,0.001]
[1765789270258,30.48820746,3143.1,3143.0,0.001]
[1765789270460,30.16974746,3143.1,3143.0,0.001]
[1765789271892,21.72591546,3143.1,3143.0,0.001]
[1765789272080,20.16191546,3143.1,3143.0,0.001]
[1765789272388,12.48216246,3143.1,3143.0,0.001]
[1765789272586,20.51308346,3143.1,3143.0,0.001]
[1765789273692,33.23256146,3143.1,3143.0,0.001]
[1765789274692,33.85119646,3143.1,3143.0,0.001]
[1765789275566,42.48136246,3143.1,3143.0,0.001]
[1765789276474,46.85789804,3143.1,3143.0,0.001]
[1765789276660,47.26340204,3143.1,3143.0,0.001]
[1765789277494,42.88686646,3143.1,3143.0,0.001]
[1765789277696,47.26340204,3143.1,3143.0,0.001]
[1765789278491,17.26340204,3143.1,3143.0,0.001]
[1765789278794,0.98597929,3142.7,3142.6,0.001]
[1765789279097,36.40970616,3142.7,3142.6,0.001]
[1765789279285,36.86923109,3142.7,3142.6,0.001]
[1765789279590,36.9967128,3142.7,3142.6,0.001]
[1765789280794,40.17869008,3142.7,3142.6,0.001]
[1765789281091,42.84940687,3142.7,3142.6,0.001]
[1765789281297,18.29315629,3142.7,3142.6,0.001]
[1765789281679,28.27473629,3142.7,3142.6,0.001]
[1765789282002,34.60473629,3142.7,3142.6,0.001]
[1765789282602,44.80287129,3142.7,3142.6,0.001]
[1765789283202,16.194887,3142.7,3142.6,0.001]
[1765789283503,17.27736229,3142.7,3142.6,0.001]
[1765789283742,19.63496429,3142.7,3142.6,0.001]
[1765789284203,17.780306,3142.7,3142.6,0.001]
[1765789284417,18.36078129,3142.7,3142.6,0.001]
[1765789286181,44.39736729,3142.7,3142.6,0.001]
[1765789287397,35.55201029,3142.7,3142.6,0.001]
[1765789288188,41.01585729,3142.7,3142.6,0.001]
[1765789289271,44.39736729,3142.7,3142.6,0.001]
[1765789289713,43.89536729,3142.7,3142.6,0.001]
[1765789290017,18.84478929,3142.7,3142.6,0.001]
[1765789290197,32.64731529,3142.7,3142.6,0.001]
[1765789290400,32.32880729,3142.7,3142.6,0.001]
[1765789291214,22.11448929,3142.7,3142.6,0.001]
[1765789291474,20.08288329,3142.7,3142.6,0.001]
[1765789292037,15.95566529,3142.7,3142.6,0.001]
[1765789292338,4.9050505,3142.7,3142.6,0.1183]
[1765789292539,4.4078505,3142.7,3142.6,0.1183]
[1765789292777,3.9058505,3142.7,3142.6,0.1183]
[1765789292964,3.68397728,3142.7,3142.6,0.2356]
[1765789293580,3.68397728,3142.7,3142.6,0.1183]
[1765789293755,3.68397728,3142.7,3142.6,0.001]
[1765789294070,3.68397728,3142.7,3142.6,0.1183]
[1765789294939,3.68397728,3142.7,3142.6,0.2356]
[1765789295842,3.68317728,3142.7,3142.6,0.2356]
[1765789298253,3.68317728,3142.7,3142.6,0.1183]
[1765789301357,3.68317728,3142.7,3142.6,0.2356]
[1765789301962,4.14987728,3142.7,3142.6,0.001]
[1765789302165,4.62337728,3142.7,3142.6,0.001]
[1765789303671,4.14987728,3142.7,3142.6,0.001]
[1765789304652,3.68317728,3142.7,3142.6,0.001]
[1765789309584,3.81062081,3142.7,3142.6,0.001]
[1765789309882,3.81262081,3142.7,3142.6,0.001]
[1765789311059,4.8597961,3142.7,3142.6,0.001]
[1765789313481,6.50459171,3142.7,3142.6,0.001]
[1765789316789,6.03109171,3142.7,3142.6,0.001]
[1765789317668,4.3930961,3142.7,3142.6,0.001]
[1765789317866,4.3930961,3142.7,3142.6,0.1183]
[1765789318188,4.3930961,3142.7,3142.6,0.2356]
[1765789318973,3.81262081,3142.7,3142.6,0.2356]
[1765789319168,3.81182081,3142.7,3142.6,0.2356]
[1765789320392,3.81182081,3142.7,3142.6,0.1183]
[1765789320697,3.81182081,3142.7,3142.6,0.2356]
[1765789321772,0.002,3142.7,3142.6,0.2356]
[1765789321978,0.504,3142.7,3142.6,0.57758782]
[1765789322894,0.002,3142.7,3142.6,3.75966635]
[1765789323293,0.504,3142.7,3142.6,3.75966635]
[1765789323592,0.504,3142.7,3142.6,4.16517035]
[1765789323593,0.002,3142.7,3142.6,4.16517035]
[1765789323770,0.002,3142.7,3142.6,4.74564564]
[1765789324484,0.002,3142.7,3142.6,4.87303437]
[1765789324795,0.002,3142.7,3142.6,5.67303437]
[1765789326967,0.002,3142.7,3142.6,10.04991108]
[1765789329702,0.002,3142.7,3142.6,5.67303437]
[1765789331109,0.002,3142.7,3142.6,5.26753037]
[1765789331320,0.002,3142.7,3142.6,5.14014164]
[1765789331524,0.002,3142.7,3142.6,4.55966635]
[1765789331802,0.002,3142.7,3142.6,4.96517035]
[1765789334913,0.002,3142.7,3142.6,4.99699113]
[1765789335113,0.002,3142.7,3142.6,4.96517035]
[1765789335688,0.002,3142.7,3142.6,9.95434313]
[1765789335890,0.002,3142.7,3142.6,9.92252235]
[1765789336089,0.002,3142.7,3142.6,5.54564564]
[1765789336712,0.002,3142.7,3142.6,5.57746642]
[1765789337934,0.002,3142.7,3142.6,9.95434313]
[1765789338090,0.002,3142.7,3142.6,9.92252235]
[1765789338832,0.002,3142.7,3142.6,5.54564564]
[1765789339013,0.002,3143.0,3142.7,0.98597929]
[1765789339324,0.002,3143.0,3142.9,5.480156]
[1765789339687,0.002,3143.0,3142.9,5.597456]
[1765789339887,0.002,3143.0,3142.9,8.77923079]
[1765789340813,0.002,3143.0,3142.9,8.90660289]
[1765789342585,0.0012,3143.0,3142.9,8.90660289]
[1765789342855,0.0012,3143.0,3142.9,10.28849595]
[1765789343482,0.0012,3143.0,3142.9,5.91161924]
[1765789346027,0.0012,3143.0,3142.9,5.78424714]
[1765789349260,0.0012,3143.0,3142.9,5.66694714]
[1765789349466,0.0012,3143.0,3142.9,10.16112385]
[1765789350438,0.0012,3143.0,3142.9,10.04382385]
[1765789350942,0.0012,3143.0,3142.9,10.16112385]
[1765789353062,0.0012,3143.0,3142.9,10.04382385]
[1765789353965,0.0012,3143.0,3142.9,10.16112385]
[1765789354134,0.0012,3143.0,3142.9,10.04382385]
[1765789354334,0.0012,3143.0,3142.9,10.16112385]
[1765789354735,0.0012,3143.0,3142.9,5.78424714]
[1765789356378,0.0012,3143.0,3142.9,5.81606488]
[1765789356568,0.0012,3143.0,3142.9,5.78424714]
[1765789357644,0.0012,3143.0,3142.9,5.78524714]
[1765789362385,0.0012,3143.0,3142.9,5.66794714]
[1765789362867,0.0012,3143.0,3142.9,5.78524714]
[1765789365779,0.0004,3143.0,3142.9,5.78524714]
[1765789370884,0.002,3143.1,3142.9,5.78524714]
[1765789371050,0.002,3143.1,3143.0,2.41218172]
[1765789371888,0.002,3143.1,3143.0,2.87858172]
[1765789372890,0.002,3143.1,3143.0,5.94295528]
[1765789373057,0.002,3143.1,3143.0,9.97073199]
[1765789374174,0.002,3143.1,3143.0,10.43513199]
[1765789374701,0.002,3143.5,3143.4,4.78238071]
[1765789374856,0.002,3143.5,3143.4,5.37791878]
[1765789375058,0.002,3143.5,3143.4,8.67648746]
[1765789375261,0.002,3144.3,3144.0,0.405504]
[1765789375482,0.002,3144.3,3144.1,0.98597929]
[1765789375792,0.002,3144.3,3144.2,0.640104]
[1765789375998,0.002,3144.3,3144.2,1.8288796]
[1765789377311,0.002,3144.3,3144.2,5.58981414]
[1765789377457,0.002,3144.3,3144.2,9.96669085]
[1765789379293,0.002,3144.3,3144.2,5.58981414]
[1765789379791,0.002,3144.3,3144.2,5.47251414]
[1765789380289,0.4963,3144.8,3144.5,10.638696]
[1765789380290,0.002,3144.8,3144.5,10.638696]
[1765789380487,0.002,3144.8,3144.4,0.1173]
[1765789380488,0.002,3145.6,3144.9,0.405504]
[1765789380688,0.002,3145.6,3145.5,5.480156]
[1765789380997,0.002,3145.6,3145.5,9.85703271]
[1765789381164,0.002,3145.6,3145.5,5.679256]
[1765789381495,0.9779,3145.6,3145.5,8.5315833]
[1765789381675,0.9779,3145.6,3145.5,9.4315833]
[1765789382378,0.9779,3145.6,3145.5,8.85110801]
[1765789384188,0.9779,3145.6,3145.5,5.6719632]
[1765789384794,0.9779,3145.6,3145.5,8.85110801]
[1765789385201,0.9779,3145.6,3145.5,1.305504]
[1765789385407,0.9779,3145.6,3145.5,0.9]
[1765789385907,0.9779,3145.6,3145.1,4.3664592]
[1765789385908,4.15694374,3145.6,3145.1,4.3664592]
[1765789386213,0.4816,3145.2,3144.9,8.12666694]
[1765789386503,0.4816,3145.0,3144.9,8.12666694]
[1765789386804,0.4816,3145.0,3144.6,1.0755996]
[1765789388718,0.9759,3144.6,3144.5,4.3664592]
[1765789389008,0.9751,3144.6,3144.5,4.3664592]
[1765789389684,0.9751,3144.6,3144.4,0.405504]
[1765789389685,0.4816,3144.6,3144.4,0.405504]
[1765789389914,0.4816,3144.5,3144.4,3.58576096]
[1765789390209,0.4816,3144.5,3144.4,7.95222016]
[1765789390405,0.4816,3144.5,3144.3,3.18027783]
[1765789390406,0.4816,3144.5,3144.3,4.3664592]
[1765789390705,0.4816,3144.4,3144.3,7.5468173]
[1765789391094,0.9759,3144.4,3144.3,7.5468173]
[1765789393694,0.9759,3144.4,3144.3,4.3664592]
[1765789394213,0.9759,3144.4,3144.1,7.54691917]
[1765789394416,0.4943,3144.3,3144.1,7.54691917]
[1765789394581,0.4816,3144.2,3144.0,3.18063984]